[Event "Titled Tuesday Blitz September 28 2021"]
[White "Smirnov, Pavel"]
[Black "Maltsevskaya, Aleksandra"]
[WhiteFideId "4123425"]
[BlackFideId "24174041"]
[WhiteElo "2563"]
[BlackElo "2239"]
[Result "0-1"]
[Round "05"]
[TimeControl "180+1"]
[Date "2021.09.28"]
[WhiteClock "0:00:03"]
[BlackClock "0:01:01"]

1. d4 {[%clk 0:03:00]}  Nf6 {[%clk 0:02:43]} 2. c4 {[%clk 0:03:01]}  b6 {[%clk 0:02:42]} 3. Nc3 {[%clk 0:03:00]}  Bb7 {[%clk 0:02:42]} 4. Qc2 {[%clk 0:03:00]}  d5 {[%clk 0:02:42]} 5. cxd5 {[%clk 0:03:00]}  Nxd5 {[%clk 0:02:43]} 6. Nf3 {[%clk 0:03:00]}  e6 {[%clk 0:02:41]} 7. e4 {[%clk 0:02:59]}  Nxc3 {[%clk 0:02:41]} 8. bxc3 {[%clk 0:03:00]}  Be7 {[%clk 0:02:41]} 9. Bd3 {[%clk 0:02:59]}  O-O {[%clk 0:02:39]} 10. O-O {[%clk 0:03:00]}  c5 {[%clk 0:02:39]} 11. d5 {[%clk 0:02:43]}  Nd7 {[%clk 0:02:28]} 12. c4 {[%clk 0:02:35]}  Bf6 {[%clk 0:02:27]} 13. Rb1 {[%clk 0:02:34]}  Re8 {[%clk 0:02:20]} 14. g3 {[%clk 0:02:22]}  Ne5 {[%clk 0:02:09]} 15. Nxe5 {[%clk 0:02:19]}  Bxe5 {[%clk 0:02:10]} 16. f4 {[%clk 0:02:19]}  Bd4+ {[%clk 0:02:10]} 17. Kh1 {[%clk 0:02:19]}  exd5 {[%clk 0:02:10]} 18. exd5 {[%clk 0:02:00]}  h6 {[%clk 0:01:51]} 19. Bb2 {[%clk 0:01:59]}  Rc8 {[%clk 0:01:47]} 20. Qg2 {[%clk 0:01:52]}  Re3 {[%clk 0:01:46]} 21. Rf3 {[%clk 0:01:46]}  Qe7 {[%clk 0:01:34]} 22. Bxd4 {[%clk 0:01:42]}  cxd4 {[%clk 0:01:33]} 23. Rd1 {[%clk 0:01:40]}  b5 {[%clk 0:01:30]} 24. Rxe3 {[%clk 0:01:37]}  Qxe3 {[%clk 0:01:31]} 25. Be4 {[%clk 0:00:14]}  bxc4 {[%clk 0:01:28]} 26. Qf3 {[%clk 0:00:10]}  c3 {[%clk 0:01:24]} 27. Qxe3 {[%clk 0:00:09]}  dxe3 {[%clk 0:01:25]} 28. Kg1 {[%clk 0:00:09]}  Re8 {[%clk 0:01:16]} 29. Bc2 {[%clk 0:00:06]}  e2 {[%clk 0:01:16]} 30. Re1 {[%clk 0:00:05]}  Bxd5 {[%clk 0:01:17]} 31. Kf2 {[%clk 0:00:05]}  Bc4 {[%clk 0:01:17]} 32. Rb1 {[%clk 0:00:05]}  Rd8 {[%clk 0:01:17]} 33. Ke1 {[%clk 0:00:04]}  g6 {[%clk 0:01:17]} 34. Rb4 {[%clk 0:00:04]}  Ba6 {[%clk 0:01:08]} 35. Re4 {[%clk 0:00:03]}  Rd2 {[%clk 0:01:07]} 36. Bb3 {[%clk 0:00:03]}  Rb2 {[%clk 0:01:01]} 0-1


[Site "https://www.chess.com"]

[Event "Titled Tuesday Blitz September 28 2021"]
[White "Solon, Nathan"]
[Black "Bok, Benjamin"]
[WhiteFideId "2017229"]
[BlackFideId "1017063"]
[WhiteElo "2675"]
[BlackElo "2658"]
[Result "1-0"]
[Round "05"]
[TimeControl "180+1"]
[Date "2021.09.28"]
[WhiteClock "0:00:33"]
[BlackClock "0:00:01"]

1. d4 {[%clk 0:03:00]}  Nf6 {[%clk 0:02:59]} 2. Bg5 {[%clk 0:03:00]}  d5 {[%clk 0:02:59]} 3. e3 {[%clk 0:03:00]}  c5 {[%clk 0:02:58]} 4. Bxf6 {[%clk 0:03:00]}  gxf6 {[%clk 0:02:59]} 5. dxc5 {[%clk 0:03:00]}  Nc6 {[%clk 0:02:59]} 6. Nf3 {[%clk 0:02:55]}  e5 {[%clk 0:02:56]} 7. c4 {[%clk 0:02:50]}  Be6 {[%clk 0:02:35]} 8. cxd5 {[%clk 0:02:44]}  Qxd5 {[%clk 0:02:35]} 9. Nc3 {[%clk 0:02:38]}  Qxc5 {[%clk 0:02:23]} 10. Be2 {[%clk 0:02:13]}  Rg8 {[%clk 0:02:11]} 11. O-O {[%clk 0:02:12]}  f5 {[%clk 0:01:38]} 12. Rc1 {[%clk 0:02:06]}  Qa5 {[%clk 0:01:38]} 13. Bb5 {[%clk 0:01:58]}  Rd8 {[%clk 0:01:27]} 14. Qe2 {[%clk 0:01:52]}  Bg7 {[%clk 0:01:15]} 15. e4 {[%clk 0:01:41]}  Kf8 {[%clk 0:01:04]} 16. Bxc6 {[%clk 0:01:19]}  bxc6 {[%clk 0:01:00]} 17. Ng5 {[%clk 0:01:19]}  Bh6 {[%clk 0:00:17]} 18. Nxe6+ {[%clk 0:01:19]}  fxe6 {[%clk 0:00:18]} 19. Rcd1 {[%clk 0:01:19]}  Kg7 {[%clk 0:00:14]} 20. Qf3 {[%clk 0:00:56]}  Rgf8 {[%clk 0:00:05]} 21. Qg3+ {[%clk 0:00:54]}  Kh8 {[%clk 0:00:04]} 22. Qh4 {[%clk 0:00:51]}  Bg7 {[%clk 0:00:03]} 23. Qe7 {[%clk 0:00:42]}  Qb6 {[%clk 0:00:01]} 24. b3 {[%clk 0:00:33]} 1-0


[Site "https://www.chess.com"]

[Event "Titled Tuesday Blitz September 28 2021"]
[White "Tanenbaum, Zachary"]
[Black "Lehtosaari, Mauri"]
[WhiteFideId "2060850"]
[BlackFideId "501999"]
[WhiteElo "2165"]
[BlackElo "2448"]
[Result "1-0"]
[Round "05"]
[TimeControl "180+1"]
[Date "2021.09.28"]
[WhiteClock "0:00:23"]
[BlackClock "0:00:01"]

1. e4 {[%clk 0:03:00]}  c5 {[%clk 0:02:59]} 2. Nf3 {[%clk 0:03:00]}  e6 {[%clk 0:02:59]} 3. d4 {[%clk 0:03:00]}  cxd4 {[%clk 0:03:00]} 4. Nxd4 {[%clk 0:03:00]}  Qb6 {[%clk 0:02:58]} 5. Nb3 {[%clk 0:03:00]}  Qc7 {[%clk 0:02:57]} 6. Nc3 {[%clk 0:03:00]}  a6 {[%clk 0:02:58]} 7. Bd3 {[%clk 0:03:00]}  b5 {[%clk 0:02:57]} 8. O-O {[%clk 0:03:00]}  Nf6 {[%clk 0:02:58]} 9. f4 {[%clk 0:02:55]}  d6 {[%clk 0:02:52]} 10. e5 {[%clk 0:02:50]}  Nfd7 {[%clk 0:01:59]} 11. exd6 {[%clk 0:02:28]}  Bxd6 {[%clk 0:02:00]} 12. f5 {[%clk 0:02:08]}  Nf6 {[%clk 0:01:37]} 13. fxe6 {[%clk 0:02:03]}  Bxe6 {[%clk 0:01:37]} 14. Bg5 {[%clk 0:01:22]}  Nbd7 {[%clk 0:01:34]} 15. Qf3 {[%clk 0:01:20]}  Rc8 {[%clk 0:01:07]} 16. Rae1 {[%clk 0:01:18]}  O-O {[%clk 0:01:00]} 17. Ne4 {[%clk 0:01:08]}  Be7 {[%clk 0:00:44]} 18. Nxf6+ {[%clk 0:01:05]}  Bxf6 {[%clk 0:00:35]} 19. Qe4 {[%clk 0:01:04]}  Rfe8 {[%clk 0:00:12]} 20. Qxh7+ {[%clk 0:01:03]}  Kf8 {[%clk 0:00:12]} 21. Qh8+ {[%clk 0:01:00]}  Ke7 {[%clk 0:00:12]} 22. Qxg7 {[%clk 0:01:01]}  Bxg5 {[%clk 0:00:10]} 23. Rxf7+ {[%clk 0:00:56]}  Kd6 {[%clk 0:00:09]} 24. Rxe6+ {[%clk 0:00:27]}  Rxe6 {[%clk 0:00:05]} 25. Qd4+ {[%clk 0:00:26]}  Kc6 {[%clk 0:00:05]} 26. Be4+ {[%clk 0:00:25]}  Rxe4 {[%clk 0:00:03]} 27. Qxe4+ {[%clk 0:00:26]}  Kb6 {[%clk 0:00:03]} 28. Qd4+ {[%clk 0:00:24]}  Nc5 {[%clk 0:00:01]} 29. Rxc7 {[%clk 0:00:23]} 1-0


[Site "https://www.chess.com"]

[Event "Titled Tuesday Blitz September 28 2021"]
[White "Timofeev, Artyom"]
[Black "Vrencian, Lehel"]
[WhiteFideId "4140419"]
[BlackFideId "1230999"]
[WhiteElo "2882"]
[BlackElo "2444"]
[Result "0-1"]
[Round "05"]
[TimeControl "180+1"]
[Date "2021.09.28"]
[WhiteClock "0:00:03"]
[BlackClock "0:00:04"]

1. c4 {[%clk 0:03:00]}  e5 {[%clk 0:02:59]} 2. e3 {[%clk 0:03:00]}  Nc6 {[%clk 0:02:59]} 3. Nc3 {[%clk 0:03:00]}  Nf6 {[%clk 0:02:59]} 4. d3 {[%clk 0:02:59]}  d5 {[%clk 0:02:57]} 5. cxd5 {[%clk 0:02:59]}  Nxd5 {[%clk 0:02:58]} 6. Nf3 {[%clk 0:02:59]}  Be7 {[%clk 0:02:55]} 7. Be2 {[%clk 0:02:59]}  O-O {[%clk 0:02:54]} 8. O-O {[%clk 0:02:59]}  Be6 {[%clk 0:02:52]} 9. a3 {[%clk 0:02:59]}  a5 {[%clk 0:02:51]} 10. Qc2 {[%clk 0:02:59]}  Nb6 {[%clk 0:02:50]} 11. b3 {[%clk 0:02:58]}  f5 {[%clk 0:02:46]} 12. Bb2 {[%clk 0:02:58]}  Bf6 {[%clk 0:02:46]} 13. Rac1 {[%clk 0:02:54]}  Qe8 {[%clk 0:02:43]} 14. Nb5 {[%clk 0:02:47]}  Qf7 {[%clk 0:02:42]} 15. Nd2 {[%clk 0:02:46]}  Rae8 {[%clk 0:02:32]} 16. Rfe1 {[%clk 0:02:44]}  Kh8 {[%clk 0:02:29]} 17. Bf3 {[%clk 0:02:43]}  Bd5 {[%clk 0:02:19]} 18. e4 {[%clk 0:02:41]}  fxe4 {[%clk 0:02:18]} 19. dxe4 {[%clk 0:02:29]}  Be6 {[%clk 0:02:16]} 20. g3 {[%clk 0:02:16]}  Bg5 {[%clk 0:02:15]} 21. Re3 {[%clk 0:02:05]}  Bxe3 {[%clk 0:02:14]} 22. fxe3 {[%clk 0:02:06]}  Rd8 {[%clk 0:02:11]} 23. Rf1 {[%clk 0:01:54]}  Qd7 {[%clk 0:02:06]} 24. Rf2 {[%clk 0:01:46]}  h6 {[%clk 0:01:45]} 25. h4 {[%clk 0:01:44]}  Rf7 {[%clk 0:01:45]} 26. Bc3 {[%clk 0:01:13]}  Qd3 {[%clk 0:01:33]} 27. Qxd3 {[%clk 0:01:03]}  Rxd3 {[%clk 0:01:34]} 28. Be2 {[%clk 0:01:03]}  Rxf2 {[%clk 0:01:28]} 29. Kxf2 {[%clk 0:01:03]}  Rd7 {[%clk 0:01:27]} 30. Nc4 {[%clk 0:00:50]}  Nxc4 {[%clk 0:01:19]} 31. bxc4 {[%clk 0:00:50]}  a4 {[%clk 0:01:16]} 32. Ke1 {[%clk 0:00:48]}  Kg8 {[%clk 0:01:15]} 33. Bd2 {[%clk 0:00:44]}  Kf7 {[%clk 0:00:49]} 34. h5 {[%clk 0:00:38]}  Ke7 {[%clk 0:00:45]} 35. Nc3 {[%clk 0:00:38]}  Rd8 {[%clk 0:00:45]} 36. Nxa4 {[%clk 0:00:27]}  Ra8 {[%clk 0:00:44]} 37. Nc5 {[%clk 0:00:28]}  Rxa3 {[%clk 0:00:35]} 38. Nxb7 {[%clk 0:00:28]}  Ra1+ {[%clk 0:00:33]} 39. Kf2 {[%clk 0:00:27]}  Ra2 {[%clk 0:00:33]} 40. Ke1 {[%clk 0:00:27]}  Rc2 {[%clk 0:00:32]} 41. Bd3 {[%clk 0:00:24]}  Ra2 {[%clk 0:00:27]} 42. Nc5 {[%clk 0:00:24]}  Na5 {[%clk 0:00:25]} 43. Nxe6 {[%clk 0:00:23]}  Kxe6 {[%clk 0:00:26]} 44. Bb4 {[%clk 0:00:21]}  Nb3 {[%clk 0:00:20]} 45. Be2 {[%clk 0:00:18]}  c5 {[%clk 0:00:16]} 46. Bc3 {[%clk 0:00:18]}  Nc1 {[%clk 0:00:15]} 47. Bg4+ {[%clk 0:00:17]}  Kf6 {[%clk 0:00:15]} 48. Kd1 {[%clk 0:00:16]}  Nd3 {[%clk 0:00:15]} 49. Bf5 {[%clk 0:00:16]}  Rg2 {[%clk 0:00:09]} 50. g4 {[%clk 0:00:17]}  Nf2+ {[%clk 0:00:10]} 51. Ke1 {[%clk 0:00:17]}  Nxg4 {[%clk 0:00:10]} 52. Ba5 {[%clk 0:00:14]}  Nxe3 {[%clk 0:00:10]} 53. Bd8+ {[%clk 0:00:13]}  Kf7 {[%clk 0:00:10]} 54. Bg6+ {[%clk 0:00:14]}  Ke6 {[%clk 0:00:10]} 55. Bb6 {[%clk 0:00:13]}  Nxc4 {[%clk 0:00:08]} 56. Bxc5 {[%clk 0:00:13]}  Nd6 {[%clk 0:00:08]} 57. Kf1 {[%clk 0:00:12]}  Rg4 {[%clk 0:00:08]} 58. Ke2 {[%clk 0:00:03]}  Rxg6 {[%clk 0:00:08]} 59. hxg6 {[%clk 0:00:02]}  Nxe4 {[%clk 0:00:09]} 60. Bf8 {[%clk 0:00:03]}  Kf6 {[%clk 0:00:09]} 61. Ke3 {[%clk 0:00:04]}  Ng5 {[%clk 0:00:09]} 62. Bd6 {[%clk 0:00:04]}  Kxg6 {[%clk 0:00:09]} 63. Bxe5 {[%clk 0:00:04]}  Ne6 {[%clk 0:00:08]} 64. Ke4 {[%clk 0:00:04]}  Kg5 {[%clk 0:00:08]} 65. Kd5 {[%clk 0:00:05]}  Nf4+ {[%clk 0:00:06]} 66. Ke4 {[%clk 0:00:04]}  Ne6 {[%clk 0:00:06]} 67. Bc3 {[%clk 0:00:04]}  g6 {[%clk 0:00:06]} 68. Bd2+ {[%clk 0:00:04]}  Kh5 {[%clk 0:00:06]} 69. Ke5 {[%clk 0:00:05]}  Ng5 {[%clk 0:00:05]} 70. Be3 {[%clk 0:00:05]}  Nh3 {[%clk 0:00:04]} 71. Ke4 {[%clk 0:00:04]}  g5 {[%clk 0:00:05]} 72. Kf3 {[%clk 0:00:05]}  g4+ {[%clk 0:00:04]} 73. Kg3 {[%clk 0:00:05]}  Ng5 {[%clk 0:00:04]} 74. Bc1 {[%clk 0:00:04]}  Ne4+ {[%clk 0:00:04]} 75. Kf4 {[%clk 0:00:05]}  Nf6 {[%clk 0:00:04]} 76. Bb2 {[%clk 0:00:03]}  Nh7 {[%clk 0:00:04]} 0-1


[Site "https://www.chess.com"]

[Event "Titled Tuesday Blitz September 28 2021"]
[White "Tsydypov, Zhamsaran"]
[Black "Nguyen, Ngoc Truong Son"]
[WhiteFideId "4108566"]
[BlackFideId "12401110"]
[WhiteElo "2649"]
[BlackElo "2596"]
[Result "1-0"]
[Round "05"]
[TimeControl "180+1"]
[Date "2021.09.28"]
[WhiteClock "0:00:47"]
[BlackClock "0:00:03"]

1. d4 {[%clk 0:03:00]}  Nf6 {[%clk 0:02:59]} 2. Nf3 {[%clk 0:03:00]}  e6 {[%clk 0:02:58]} 3. c4 {[%clk 0:02:59]}  d5 {[%clk 0:02:57]} 4. Nc3 {[%clk 0:02:59]}  Be7 {[%clk 0:02:55]} 5. g3 {[%clk 0:02:58]}  O-O {[%clk 0:02:54]} 6. Bg2 {[%clk 0:02:58]}  c6 {[%clk 0:02:51]} 7. O-O {[%clk 0:02:57]}  dxc4 {[%clk 0:02:51]} 8. Ne5 {[%clk 0:02:54]}  Nbd7 {[%clk 0:02:09]} 9. Nxc4 {[%clk 0:02:53]}  Nb6 {[%clk 0:02:08]} 10. Ne5 {[%clk 0:02:45]}  Nbd5 {[%clk 0:02:05]} 11. Qb3 {[%clk 0:02:43]}  Qb6 {[%clk 0:02:04]} 12. Rd1 {[%clk 0:02:41]}  Qxb3 {[%clk 0:02:04]} 13. axb3 {[%clk 0:02:41]}  Nb4 {[%clk 0:02:04]} 14. e3 {[%clk 0:02:37]}  Bd7 {[%clk 0:02:02]} 15. Bd2 {[%clk 0:02:35]}  Rfc8 {[%clk 0:01:58]} 16. Na4 {[%clk 0:02:33]}  Na6 {[%clk 0:01:38]} 17. Rac1 {[%clk 0:02:20]}  Be8 {[%clk 0:01:35]} 18. Nd3 {[%clk 0:02:16]}  Rd8 {[%clk 0:01:12]} 19. b4 {[%clk 0:02:15]}  Rab8 {[%clk 0:01:09]} 20. Nac5 {[%clk 0:02:15]}  Nc7 {[%clk 0:01:09]} 21. Ra1 {[%clk 0:02:11]}  Nb5 {[%clk 0:01:05]} 22. Ne5 {[%clk 0:02:10]}  Nd5 {[%clk 0:01:04]} 23. Bf1 {[%clk 0:02:09]}  Ndc7 {[%clk 0:01:04]} 24. Nc4 {[%clk 0:02:06]}  Nd5 {[%clk 0:00:35]} 25. Bg2 {[%clk 0:01:56]}  h6 {[%clk 0:00:32]} 26. h4 {[%clk 0:01:55]}  Ndc7 {[%clk 0:00:28]} 27. Na3 {[%clk 0:01:51]}  b6 {[%clk 0:00:19]} 28. Nd3 {[%clk 0:01:48]}  Rbc8 {[%clk 0:00:17]} 29. Nc4 {[%clk 0:01:41]}  Nd5 {[%clk 0:00:16]} 30. Be1 {[%clk 0:01:41]}  f6 {[%clk 0:00:15]} 31. Bh3 {[%clk 0:01:40]}  Bf7 {[%clk 0:00:15]} 32. Rdc1 {[%clk 0:01:39]}  Rc7 {[%clk 0:00:15]} 33. Na3 {[%clk 0:01:38]}  a6 {[%clk 0:00:14]} 34. Nc4 {[%clk 0:01:37]}  Ra7 {[%clk 0:00:12]} 35. Nf4 {[%clk 0:01:31]}  Nxf4 {[%clk 0:00:11]} 36. gxf4 {[%clk 0:01:32]}  Rb8 {[%clk 0:00:09]} 37. Bf1 {[%clk 0:01:23]}  Be8 {[%clk 0:00:08]} 38. Be2 {[%clk 0:01:17]}  c5 {[%clk 0:00:08]} 39. bxc5 {[%clk 0:01:17]}  bxc5 {[%clk 0:00:09]} 40. dxc5 {[%clk 0:01:17]}  Bxc5 {[%clk 0:00:10]} 41. Na5 {[%clk 0:01:16]}  Bd6 {[%clk 0:00:09]} 42. Nc6 {[%clk 0:01:16]}  Bxc6 {[%clk 0:00:09]} 43. Rxc6 {[%clk 0:01:17]}  Rd7 {[%clk 0:00:06]} 44. Raxa6 {[%clk 0:01:11]}  Bf8 {[%clk 0:00:06]} 45. Rxe6 {[%clk 0:00:54]}  Nc7 {[%clk 0:00:06]} 46. Rab6 {[%clk 0:00:54]}  Ra8 {[%clk 0:00:04]} 47. Rec6 {[%clk 0:00:54]}  Ra1 {[%clk 0:00:04]} 48. Kf1 {[%clk 0:00:54]}  Nd5 {[%clk 0:00:05]} 49. Rb8 {[%clk 0:00:54]}  Ne7 {[%clk 0:00:04]} 50. Ra6 {[%clk 0:00:49]}  Rc1 {[%clk 0:00:03]} 51. Raa8 {[%clk 0:00:48]}  Kh7 {[%clk 0:00:03]} 52. h5 {[%clk 0:00:47]} 1-0


[Site "https://www.chess.com"]

[Event "Titled Tuesday Blitz September 28 2021"]
[White "Urazayev, Arystanbek"]
[Black "Levitskiy, Andrey"]
[WhiteFideId "13709810"]
[BlackFideId "14132885"]
[WhiteElo "2321"]
[BlackElo "2340"]
[Result "1-0"]
[Round "05"]
[TimeControl "180+1"]
[Date "2021.09.28"]
[WhiteClock "0:01:36"]
[BlackClock "0:00:02"]

1. e4 {[%clk 0:03:00]}  c5 {[%clk 0:03:00]} 2. Nf3 {[%clk 0:03:01]}  d6 {[%clk 0:03:01]} 3. Bb5+ {[%clk 0:03:01]}  Nc6 {[%clk 0:03:00]} 4. d4 {[%clk 0:02:59]}  cxd4 {[%clk 0:02:58]} 5. Qxd4 {[%clk 0:03:00]}  Bd7 {[%clk 0:02:58]} 6. Qd3 {[%clk 0:03:00]}  Nf6 {[%clk 0:02:55]} 7. c4 {[%clk 0:03:01]}  g6 {[%clk 0:02:17]} 8. Nc3 {[%clk 0:02:59]}  Bg7 {[%clk 0:02:18]} 9. h3 {[%clk 0:02:59]}  O-O {[%clk 0:02:18]} 10. Be3 {[%clk 0:03:00]}  a6 {[%clk 0:02:17]} 11. Bxc6 {[%clk 0:03:00]}  Bxc6 {[%clk 0:02:18]} 12. Nd4 {[%clk 0:03:00]}  Nd7 {[%clk 0:02:16]} 13. Rc1 {[%clk 0:02:59]}  Rc8 {[%clk 0:02:04]} 14. O-O {[%clk 0:02:58]}  Nc5 {[%clk 0:01:51]} 15. Qc2 {[%clk 0:02:58]}  Ne6 {[%clk 0:01:33]} 16. Nxe6 {[%clk 0:02:57]}  fxe6 {[%clk 0:01:33]} 17. Qb3 {[%clk 0:02:58]}  Kh8 {[%clk 0:01:15]} 18. Rfd1 {[%clk 0:02:49]}  Qa5 {[%clk 0:01:08]} 19. c5 {[%clk 0:02:49]}  dxc5 {[%clk 0:00:41]} 20. Qxe6 {[%clk 0:02:49]}  Rc7 {[%clk 0:00:21]} 21. Bd2 {[%clk 0:02:22]}  Qb6 {[%clk 0:00:20]} 22. Nd5 {[%clk 0:02:22]}  Qxb2 {[%clk 0:00:10]} 23. Nxc7 {[%clk 0:02:18]}  Bd4 {[%clk 0:00:08]} 24. Be3 {[%clk 0:01:59]}  Bxe3 {[%clk 0:00:07]} 25. fxe3 {[%clk 0:01:59]}  Rf2 {[%clk 0:00:06]} 26. Rd8+ {[%clk 0:01:55]}  Kg7 {[%clk 0:00:07]} 27. Qxe7+ {[%clk 0:01:55]}  Rf7 {[%clk 0:00:03]} 28. Qxc5 {[%clk 0:01:53]}  Qf2+ {[%clk 0:00:02]} 29. Kh1 {[%clk 0:01:52]}  Bxe4 {[%clk 0:00:02]} 30. Qe5+ {[%clk 0:01:52]}  Kh6 {[%clk 0:00:02]} 31. Qxe4 {[%clk 0:01:49]}  Qg3 {[%clk 0:00:02]} 32. Nd5 {[%clk 0:01:37]}  Rf2 {[%clk 0:00:01]} 33. Rg1 {[%clk 0:01:36]}  Re2 {[%clk 0:00:02]} 34. Qf4+ {[%clk 0:01:36]} 1-0


[Site "https://www.chess.com"]

[Event "Titled Tuesday Blitz September 28 2021"]
[White "Veiga, Emerson de Sousa"]
[Black "Maly, Alexey"]
[WhiteFideId "2151898"]
[BlackFideId "14103184"]
[WhiteElo "2034"]
[BlackElo "2250"]
[Result "0-1"]
[Round "05"]
[TimeControl "180+1"]
[Date "2021.09.28"]
[WhiteClock "0:00:05"]
[BlackClock "0:00:19"]

1. e4 {[%clk 0:03:00]}  c6 {[%clk 0:02:54]} 2. d4 {[%clk 0:03:00]}  d5 {[%clk 0:02:55]} 3. exd5 {[%clk 0:02:59]}  cxd5 {[%clk 0:02:55]} 4. c4 {[%clk 0:02:59]}  Nf6 {[%clk 0:02:56]} 5. Nc3 {[%clk 0:02:59]}  e6 {[%clk 0:02:56]} 6. c5 {[%clk 0:02:58]}  Be7 {[%clk 0:02:56]} 7. Nf3 {[%clk 0:02:57]}  O-O {[%clk 0:02:56]} 8. Bf4 {[%clk 0:02:55]}  b6 {[%clk 0:02:55]} 9. b4 {[%clk 0:02:55]}  a5 {[%clk 0:02:55]} 10. a3 {[%clk 0:02:53]}  axb4 {[%clk 0:02:55]} 11. axb4 {[%clk 0:02:53]}  Rxa1 {[%clk 0:02:55]} 12. Qxa1 {[%clk 0:02:54]}  Nc6 {[%clk 0:02:51]} 13. Qa4 {[%clk 0:02:40]}  Bd7 {[%clk 0:02:06]} 14. b5 {[%clk 0:02:25]}  Nxd4 {[%clk 0:02:04]} 15. Nxd4 {[%clk 0:02:17]}  bxc5 {[%clk 0:02:04]} 16. Nc6 {[%clk 0:02:14]}  Bxc6 {[%clk 0:02:04]} 17. bxc6 {[%clk 0:02:15]}  Bd6 {[%clk 0:01:55]} 18. Bxd6 {[%clk 0:01:58]}  Qxd6 {[%clk 0:01:56]} 19. Bb5 {[%clk 0:01:52]}  d4 {[%clk 0:01:48]} 20. Nd1 {[%clk 0:01:29]}  Qe5+ {[%clk 0:01:40]} 21. Kf1 {[%clk 0:01:20]}  Nd5 {[%clk 0:01:40]} 22. Qc4 {[%clk 0:01:15]}  h6 {[%clk 0:01:30]} 23. g3 {[%clk 0:01:03]}  Qe4 {[%clk 0:01:24]} 24. Kg1 {[%clk 0:00:54]}  Ra8 {[%clk 0:01:09]} 25. h4 {[%clk 0:00:26]}  Ra1 {[%clk 0:01:02]} 26. Kh2 {[%clk 0:00:26]}  Qf3 {[%clk 0:01:00]} 27. Qe2 {[%clk 0:00:26]}  Qxe2 {[%clk 0:00:55]} 28. Bxe2 {[%clk 0:00:27]}  Rb1 {[%clk 0:00:55]} 29. Bc4 {[%clk 0:00:23]}  Nc7 {[%clk 0:00:53]} 30. f4 {[%clk 0:00:18]}  Rb4 {[%clk 0:00:45]} 31. Bd3 {[%clk 0:00:17]}  c4 {[%clk 0:00:43]} 32. Be4 {[%clk 0:00:18]}  Kf8 {[%clk 0:00:39]} 33. Nf2 {[%clk 0:00:18]}  d3 {[%clk 0:00:36]} 34. Nxd3 {[%clk 0:00:08]}  cxd3 {[%clk 0:00:37]} 35. Bxd3 {[%clk 0:00:09]}  Rd4 {[%clk 0:00:33]} 36. Rd1 {[%clk 0:00:04]}  Ke7 {[%clk 0:00:31]} 37. Kg2 {[%clk 0:00:05]}  Kd6 {[%clk 0:00:29]} 38. Kf2 {[%clk 0:00:05]}  Kxc6 {[%clk 0:00:25]} 39. Rc1+ {[%clk 0:00:05]}  Kd6 {[%clk 0:00:23]} 40. Ke3 {[%clk 0:00:03]}  Rb4 {[%clk 0:00:21]} 41. Rd1 {[%clk 0:00:03]}  Nd5+ {[%clk 0:00:20]} 42. Ke2 {[%clk 0:00:04]}  Nc3+ {[%clk 0:00:19]} 43. Kd2 {[%clk 0:00:04]}  Nxd1 {[%clk 0:00:19]} 44. Kxd1 {[%clk 0:00:05]}  Rb2 {[%clk 0:00:19]} 0-1


[Site "https://www.chess.com"]

[Event "Titled Tuesday Blitz September 28 2021"]
[White "Visakh N R"]
[Black "Pert, Richard G"]
[WhiteFideId "25012223"]
[BlackFideId "404748"]
[WhiteElo "2454"]
[BlackElo "2441"]
[Result "1-0"]
[Round "05"]
[TimeControl "180+1"]
[Date "2021.09.28"]
[WhiteClock "0:00:38"]
[BlackClock "0:00:15"]

1. d4 {[%clk 0:03:00]}  d5 {[%clk 0:01:36]} 2. c4 {[%clk 0:02:59]}  e6 {[%clk 0:01:36]} 3. Nc3 {[%clk 0:02:59]}  Nf6 {[%clk 0:01:36]} 4. Nf3 {[%clk 0:02:58]}  Bb4 {[%clk 0:01:35]} 5. e3 {[%clk 0:02:53]}  O-O {[%clk 0:01:34]} 6. Bd2 {[%clk 0:02:53]}  Re8 {[%clk 0:01:31]} 7. Rc1 {[%clk 0:02:50]}  Bf8 {[%clk 0:01:29]} 8. Be2 {[%clk 0:02:45]}  c6 {[%clk 0:01:23]} 9. O-O {[%clk 0:02:45]}  Nbd7 {[%clk 0:01:22]} 10. Qc2 {[%clk 0:02:43]}  a6 {[%clk 0:01:22]} 11. Rfd1 {[%clk 0:02:43]}  b5 {[%clk 0:01:20]} 12. cxd5 {[%clk 0:02:20]}  cxd5 {[%clk 0:01:20]} 13. a4 {[%clk 0:02:20]}  b4 {[%clk 0:01:18]} 14. Na2 {[%clk 0:02:19]}  a5 {[%clk 0:01:16]} 15. Bb5 {[%clk 0:02:12]}  Ba6 {[%clk 0:01:14]} 16. Bxa6 {[%clk 0:02:09]}  Rxa6 {[%clk 0:01:13]} 17. Be1 {[%clk 0:02:09]}  Nb6 {[%clk 0:01:05]} 18. b3 {[%clk 0:02:07]}  Ra8 {[%clk 0:01:03]} 19. Ne5 {[%clk 0:02:05]}  Rc8 {[%clk 0:01:01]} 20. Qe2 {[%clk 0:02:05]}  Nfd7 {[%clk 0:00:58]} 21. Nc6 {[%clk 0:02:02]}  Qg5 {[%clk 0:00:54]} 22. Nxa5 {[%clk 0:02:00]}  Rxc1 {[%clk 0:00:49]} 23. Nxc1 {[%clk 0:01:54]}  e5 {[%clk 0:00:49]} 24. dxe5 {[%clk 0:01:51]}  Qxe5 {[%clk 0:00:47]} 25. Nd3 {[%clk 0:01:47]}  Qe4 {[%clk 0:00:43]} 26. Qf3 {[%clk 0:01:36]}  Qg6 {[%clk 0:00:38]} 27. Bxb4 {[%clk 0:01:23]}  Bxb4 {[%clk 0:00:38]} 28. Nxb4 {[%clk 0:01:23]}  Ne5 {[%clk 0:00:38]} 29. Qe2 {[%clk 0:01:20]}  h5 {[%clk 0:00:36]} 30. Nxd5 {[%clk 0:01:18]}  Nxd5 {[%clk 0:00:36]} 31. Rxd5 {[%clk 0:01:18]}  Qe4 {[%clk 0:00:34]} 32. Rd1 {[%clk 0:01:13]}  Re6 {[%clk 0:00:33]} 33. Nc4 {[%clk 0:01:03]}  Nc6 {[%clk 0:00:27]} 34. Qxh5 {[%clk 0:00:57]}  Rh6 {[%clk 0:00:26]} 35. Qd5 {[%clk 0:00:55]}  Qg4 {[%clk 0:00:25]} 36. Qf3 {[%clk 0:00:47]}  Qh4 {[%clk 0:00:23]} 37. h3 {[%clk 0:00:44]}  Rf6 {[%clk 0:00:21]} 38. Qg3 {[%clk 0:00:43]}  Qh5 {[%clk 0:00:21]} 39. Qg4 {[%clk 0:00:40]}  Qc5 {[%clk 0:00:19]} 40. Qc8+ {[%clk 0:00:38]}  Kh7 {[%clk 0:00:18]} 41. Rd8 {[%clk 0:00:38]}  Qb4 {[%clk 0:00:15]} 42. Rh8+ {[%clk 0:00:37]}  Kg6 {[%clk 0:00:15]} 43. Qg4# {[%clk 0:00:38]} 1-0


[Site "https://www.chess.com"]